[Event "UK Open Blitz Championships 2024 - London Qualifier"]
[Site "London, United Kingdom"]
[Date "2024.09.21"]
[Round "3.1"]
[White "Ghasi, Ameet K"]
[Black "Finn, Peter"]
[Result "1-0"]
[TimeControl "3 minutes + 2 seconds incr. from move 1"]
[WhiteTitle "IM"]
[BlackTitle "CM"]
[WhiteFideId "409200"]
[BlackFideId "432156"]
[WhiteElo "2524"]
[BlackElo "2015"]

1. Nf3 {[%clk 00:03:02]} {[%emt 00:00:02]} Nf6 {[%clk 00:03:03]} {[%emt
00:00:01]} 2. g3 {[%clk 00:03:03]} d5 {[%clk 00:03:04]} 3. Bg2 {[%clk
00:03:04]} e6 {[%clk 00:03:05]} {[%emt 00:00:01]} 4. O-O {[%clk 00:03:04]}
{[%emt 00:00:01]} Be7 {[%clk 00:03:07]} 5. d3 {[%clk 00:03:06]} O-O {[%clk
00:03:07]} {[%emt 00:00:02]} 6. Nbd2 {[%clk 00:03:07]} c5 {[%clk 00:03:08]} 7.
e4 {[%clk 00:03:08]} {[%emt 00:00:01]} b5 {[%clk 00:03:06]} {[%emt 00:00:04]} 8.
e5 {[%clk 00:03:04]} {[%emt 00:00:06]} Nfd7 {[%clk 00:03:07]} {[%emt 00:00:02]}
9. h4 {[%clk 00:03:05]} Nc6 {[%clk 00:03:07]} {[%emt 00:00:02]} 10. Re1 {[%clk
00:03:06]} a5 {[%clk 00:03:07]} {[%emt 00:00:02]} 11. Nf1 {[%clk 00:03:04]}
{[%emt 00:00:03]} Bb7 {[%clk 00:03:05]} {[%emt 00:00:05]} 12. N1h2 {[%clk
00:02:53]} {[%emt 00:00:12]} Qb6 {[%clk 00:03:02]} {[%emt 00:00:05]} 13. Bg5
{[%clk 00:02:50]} {[%emt 00:00:05]} Rfc8 {[%clk 00:02:51]} {[%emt 00:00:14]} 14.
Ng4 {[%clk 00:02:46]} {[%emt 00:00:06]} Qd8 {[%clk 00:02:36]} {[%emt 00:00:17]}
15. Qd2 {[%clk 00:02:42]} {[%emt 00:00:07]} Nf8 {[%clk 00:02:34]} {[%emt
00:00:04]} 16. Bxe7 {[%clk 00:01:26]} {[%emt 00:01:18]} Nxe7 {[%clk 00:02:24]}
{[%emt 00:00:12]} 17. h5 {[%clk 00:01:19]} {[%emt 00:00:09]} h6 {[%clk
00:02:21]} {[%emt 00:00:05]} 18. Nh4 {[%clk 00:01:20]} c4 {[%clk 00:01:55]}
{[%emt 00:00:28]} 19. d4 {[%clk 00:01:19]} {[%emt 00:00:04]} c3 {[%clk
00:01:54]} {[%emt 00:00:03]} 20. bxc3 {[%clk 00:01:20]} Qc7 {[%clk 00:01:51]}
{[%emt 00:00:05]} 21. Re3 {[%clk 00:01:19]} {[%emt 00:00:03]} b4 {[%clk
00:01:17]} {[%emt 00:00:37]} 22. Rf3 {[%clk 00:01:19]} {[%emt 00:00:02]} bxc3
{[%clk 00:01:08]} {[%emt 00:00:11]} 23. Qf4 {[%clk 00:00:53]} {[%emt 00:00:28]}
Nf5 {[%clk 00:00:57]} {[%emt 00:00:13]} 24. Nxf5 {[%clk 00:00:52]} {[%emt
00:00:03]} exf5 {[%clk 00:00:56]} {[%emt 00:00:02]} 25. Qxf5 {[%clk 00:00:50]}
{[%emt 00:00:04]} Ne6 {[%clk 00:00:53]} {[%emt 00:00:05]} 26. Rd1 {[%clk
00:00:43]} {[%emt 00:00:10]} Ba6 {[%clk 00:00:50]} {[%emt 00:00:06]} 27. Ne3
{[%clk 00:00:42]} {[%emt 00:00:02]} Be2 {[%clk 00:00:41]} {[%emt 00:00:11]} 28.
Nxd5 {[%clk 00:00:43]} {[%emt 00:00:02]} Qa7 {[%clk 00:00:31]} {[%emt
00:00:11]} 29. Rfd3 {[%clk 00:00:31]} {[%emt 00:00:13]} Bxd3 {[%clk 00:00:29]}
{[%emt 00:00:04]} 30. Qxd3 {[%clk 00:00:28]} {[%emt 00:00:05]} Rab8 {[%clk
00:00:26]} {[%emt 00:00:05]} 31. Ne3 {[%clk 00:00:23]} {[%emt 00:00:07]} Rb2
{[%clk 00:00:25]} {[%emt 00:00:04]} 32. d5 {[%clk 00:00:25]} Nc5 {[%clk
00:00:26]} 33. Qd4 {[%clk 00:00:26]} Qb6 {[%clk 00:00:19]} {[%emt 00:00:08]} 34.
d6 {[%clk 00:00:21]} {[%emt 00:00:07]} Ne6 {[%clk 00:00:19]} {[%emt 00:00:02]}
35. Qg4 {[%clk 00:00:18]} {[%emt 00:00:04]} Rxa2 {[%clk 00:00:17]} {[%emt
00:00:05]} 36. Bd5 {[%clk 00:00:19]} Qb4 {[%clk 00:00:06]} {[%emt 00:00:13]} 37.
Qxb4 {[%clk 00:00:16]} {[%emt 00:00:06]} axb4 {[%clk 00:00:07]} 38. Bxa2 {[%clk
00:00:17]} {[%emt 00:00:01]} Kf8 {[%clk 00:00:07]} {[%emt 00:00:02]} 39. Bb3
{[%clk 00:00:17]} {[%emt 00:00:01]} Rd8 {[%clk 00:00:05]} {[%emt 00:00:04]} 40.
Nd5 {[%clk 00:00:18]} {[%emt 00:00:01]} Nc5 {[%clk 00:00:04]} {[%emt 00:00:03]}
41. Nxb4 {[%clk 00:00:19]} Ne4 {[%clk 00:00:03]} {[%emt 00:00:03]} 42. Nc6
{[%clk 00:00:19]} {[%emt 00:00:02]} Rd7 {[%clk 00:00:04]} {[%emt 00:00:01]} 43.
Rd3 {[%clk 00:00:17]} {[%emt 00:00:04]} Ng5 {[%clk 00:00:04]} {[%emt 00:00:03]}
44. Rxc3 {[%clk 00:00:18]} {[%emt 00:00:01]} f6 {[%clk 00:00:05]} 45. exf6
{[%clk 00:00:18]} {[%emt 00:00:02]} gxf6 {[%clk 00:00:06]} 46. Rd3 {[%clk
00:00:20]} f5 {[%clk 00:00:07]} {[%emt 00:00:02]} 47. Ne5 {[%clk 00:00:21]} Ra7
{[%clk 00:00:07]} {[%emt 00:00:02]} 48. d7 {[%clk 00:00:22]} 1-0

[Event "UK Open Blitz Championships 2024 - London Qualifier"]
[Site "London, United Kingdom"]
[Date "2024.09.21"]
[Round "3.2"]
[White "Coleman, Robbie"]
[Black "Gasanov, Eldar"]
[Result "0-1"]
[TimeControl "3 minutes + 2 seconds incr. from move 1"]
[BlackTitle "GM"]
[WhiteFideId "2461323"]
[BlackFideId "14104466"]
[WhiteElo "2000"]
[BlackElo "2467"]

1. d4 {[%clk 00:03:02]} {[%emt 00:00:02]} Nf6 {[%clk 00:03:02]} {[%emt
00:00:02]} 2. c4 {[%clk 00:03:02]} {[%emt 00:00:01]} e6 {[%clk 00:03:02]}
{[%emt 00:00:02]} 3. Nf3 {[%clk 00:03:00]} {[%emt 00:00:04]} Bb4+ {[%clk
00:03:03]} {[%emt 00:00:02]} 4. Bd2 {[%clk 00:02:59]} {[%emt 00:00:03]} a5
{[%clk 00:03:03]} {[%emt 00:00:02]} 5. a3 {[%clk 00:02:48]} {[%emt 00:00:13]}
Bxd2+ {[%clk 00:03:03]} {[%emt 00:00:02]} 6. Nbxd2 {[%clk 00:02:48]} {[%emt
00:00:03]} d6 {[%clk 00:02:57]} {[%emt 00:00:07]} 7. g3 {[%clk 00:02:34]}
{[%emt 00:00:16]} Qe7 {[%clk 00:02:52]} {[%emt 00:00:07]} 8. Bg2 {[%clk
00:02:35]} {[%emt 00:00:02]} e5 {[%clk 00:02:53]} 9. dxe5 {[%clk 00:02:29]}
{[%emt 00:00:08]} dxe5 {[%clk 00:02:54]} {[%emt 00:00:02]} 10. O-O {[%clk
00:02:27]} {[%emt 00:00:04]} e4 {[%clk 00:02:39]} {[%emt 00:00:17]} 11. Ne1
{[%clk 00:02:02]} {[%emt 00:00:27]} e3 {[%clk 00:02:35]} {[%emt 00:00:06]} 12.
fxe3 {[%clk 00:01:46]} {[%emt 00:00:18]} Qxe3+ {[%clk 00:02:26]} {[%emt
00:00:11]} 13. Kh1 {[%clk 00:01:46]} {[%emt 00:00:02]} Ng4 {[%clk 00:02:12]}
{[%emt 00:00:17]} 14. Nd3 {[%clk 00:01:30]} {[%emt 00:00:17]} Qh6 {[%clk
00:02:03]} {[%emt 00:00:11]} 15. Nf3 {[%clk 00:00:59]} {[%emt 00:00:33]} Ne3
{[%clk 00:02:03]} {[%emt 00:00:02]} 16. Qa4+ {[%clk 00:00:48]} {[%emt
00:00:13]} Bd7 {[%clk 00:01:47]} {[%emt 00:00:17]} 17. Qb3 {[%clk 00:00:49]}
{[%emt 00:00:02]} Nxf1 {[%clk 00:01:38]} {[%emt 00:00:10]} 18. Rxf1 {[%clk
00:00:44]} {[%emt 00:00:08]} Bc6 {[%clk 00:01:28]} {[%emt 00:00:11]} 19. Nfe5
{[%clk 00:00:29]} {[%emt 00:00:18]} Bxg2+ {[%clk 00:01:24]} {[%emt 00:00:06]}
20. Kxg2 {[%clk 00:00:29]} {[%emt 00:00:02]} O-O {[%clk 00:01:18]} {[%emt
00:00:08]} 21. Qxb7 {[%clk 00:00:29]} {[%emt 00:00:02]} Na6 {[%clk 00:01:03]}
{[%emt 00:00:17]} 22. Rf4 {[%clk 00:00:20]} {[%emt 00:00:10]} Qe6 {[%clk
00:00:51]} {[%emt 00:00:14]} 23. Qf3 {[%clk 00:00:15]} {[%emt 00:00:08]} Rae8
{[%clk 00:00:44]} {[%emt 00:00:09]} 24. Re4 {[%clk 00:00:07]} {[%emt 00:00:10]}
f6 {[%clk 00:00:39]} {[%emt 00:00:07]} 25. Nf4 {[%clk 00:00:07]} fxe5 {[%clk
00:00:22]} {[%emt 00:00:19]} 26. Nxe6 {[%clk 00:00:08]} {[%emt 00:00:02]} Rxf3
27. Nxc7 Nxc7 {[%clk 00:00:16]} {[%emt 00:00:07]} 28. exf3 {[%clk 00:00:05]}
Kf7 {[%clk 00:00:18]} 29. Re3 {[%clk 00:00:05]} {[%emt 00:00:02]} Rb8 {[%clk
00:00:15]} {[%emt 00:00:04]} 30. b3 {[%clk 00:00:06]} {[%emt 00:00:02]} Kf6
{[%clk 00:00:16]} {[%emt 00:00:02]} 31. f4 {[%clk 00:00:07]} {[%emt 00:00:01]}
exf4 {[%clk 00:00:17]} 32. gxf4 {[%clk 00:00:08]} {[%emt 00:00:01]} Ne6 {[%clk
00:00:19]} 33. Kf3 {[%clk 00:00:09]} {[%emt 00:00:01]} Rxb3 {[%clk 00:00:20]}
34. Rxb3 {[%clk 00:00:09]} {[%emt 00:00:02]} Nd4+ {[%clk 00:00:22]} 35. Ke4
{[%clk 00:00:10]} {[%emt 00:00:02]} Nxb3 {[%clk 00:00:22]} 36. Kd5 {[%clk
00:00:11]} Ke7 {[%clk 00:00:22]} {[%emt 00:00:03]} 37. Kc6 {[%clk 00:00:11]}
{[%emt 00:00:02]} Kd8 {[%clk 00:00:18]} {[%emt 00:00:06]} 38. Kb6 {[%clk
00:00:12]} Kd7 {[%clk 00:00:16]} {[%emt 00:00:04]} 39. c5 {[%clk 00:00:13]}
{[%emt 00:00:01]} Nd4 {[%clk 00:00:17]} {[%emt 00:00:01]} 40. Kxa5 {[%clk
00:00:13]} {[%emt 00:00:02]} Kc6 {[%clk 00:00:18]} 41. Kb4 {[%emt 00:00:02]}
Ne6 {[%clk 00:00:19]} {[%emt 00:00:01]} 42. f5 {[%clk 00:00:14]} {[%emt
00:00:02]} Nxc5 {[%clk 00:00:19]} {[%emt 00:00:02]} 43. Kc4 {[%clk 00:00:15]}
Nd7 {[%clk 00:00:19]} {[%emt 00:00:02]} 44. Kd4 {[%clk 00:00:16]} {[%emt
00:00:02]} Kd6 {[%clk 00:00:18]} {[%emt 00:00:03]} 45. a4 {[%clk 00:00:16]}
{[%emt 00:00:02]} Nc5 {[%clk 00:00:19]} 46. a5 {[%clk 00:00:15]} {[%emt
00:00:03]} Nb3+ {[%clk 00:00:21]} 47. Ke4 {[%clk 00:00:16]} Nxa5 {[%clk
00:00:22]} 48. h4 {[%clk 00:00:17]} Ke7 {[%clk 00:00:21]} {[%emt 00:00:02]} 49.
Ke5 {[%clk 00:00:18]} {[%emt 00:00:01]} Nc6+ {[%clk 00:00:23]} 50. Kf4 {[%clk
00:00:20]} Kf6 {[%clk 00:00:24]} 51. h5 {[%clk 00:00:21]} h6 {[%clk 00:00:25]}
{[%emt 00:00:01]} 0-1

[Event "UK Open Blitz Championships 2024 - London Qualifier"]
[Site "London, United Kingdom"]
[Date "2024.09.21"]
[Round "3.3"]
[White "Fernandez, Michael H"]
[Black "Roberson, Peter T"]
[Result "0-1"]
[TimeControl "3 minutes + 2 seconds incr. from move 1"]
[BlackTitle "IM"]
[WhiteFideId "5803560"]
[BlackFideId "412384"]
[WhiteElo "1999"]
[BlackElo "2346"]

1. c4 {[%clk 00:03:02]} {[%emt 00:00:01]} e5 {[%clk 00:03:02]} {[%emt
00:00:02]} 2. g3 {[%clk 00:03:03]} {[%emt 00:00:02]} d6 {[%clk 00:03:00]}
{[%emt 00:00:04]} 3. Nc3 {[%clk 00:03:01]} {[%emt 00:00:04]} f5 {[%clk
00:03:00]} {[%emt 00:00:01]} 4. d4 {[%clk 00:02:58]} {[%emt 00:00:05]} Be7
{[%clk 00:03:01]} {[%emt 00:00:01]} 5. Bg2 {[%clk 00:02:37]} {[%emt 00:00:23]}
Nf6 {[%clk 00:03:02]} {[%emt 00:00:02]} 6. dxe5 {[%clk 00:02:21]} {[%emt
00:00:18]} dxe5 {[%clk 00:03:03]} 7. Qxd8+ {[%clk 00:02:21]} {[%emt 00:00:02]}
Bxd8 {[%clk 00:03:04]} {[%emt 00:00:01]} 8. Nf3 {[%clk 00:02:21]} {[%emt
00:00:02]} Nc6 {[%clk 00:02:49]} {[%emt 00:00:18]} 9. Nd5 {[%clk 00:02:21]}
{[%emt 00:00:02]} e4 {[%clk 00:02:16]} {[%emt 00:00:35]} 10. Nd2 {[%clk
00:01:59]} {[%emt 00:00:24]} Nxd5 {[%clk 00:02:13]} {[%emt 00:00:05]} 11. cxd5
{[%clk 00:02:00]} {[%emt 00:00:01]} Nb4 {[%clk 00:01:57]} {[%emt 00:00:18]} 12.
O-O {[%clk 00:02:00]} Nxd5 {[%clk 00:01:58]} 13. Nb3 {[%clk 00:01:52]} {[%emt
00:00:12]} Bf6 {[%clk 00:01:52]} {[%emt 00:00:08]} 14. f3 {[%clk 00:01:41]}
{[%emt 00:00:12]} exf3 {[%clk 00:01:36]} {[%emt 00:00:18]} 15. Bxf3 {[%clk
00:01:40]} {[%emt 00:00:03]} c6 {[%clk 00:01:38]} 16. Nc5 {[%clk 00:01:14]}
{[%emt 00:00:28]} 0-1

[Event "UK Open Blitz Championships 2024 - London Qualifier"]
[Site "London, United Kingdom"]
[Date "2024.09.21"]
[Round "3.4"]
[White "Badacsonyi, Stanley"]
[Black "Bijeljic, Branko"]
[Result "1-0"]
[TimeControl "3 minutes + 2 seconds incr. from move 1"]
[WhiteTitle "FM"]
[WhiteFideId "486973"]
[BlackFideId "343413250"]
[WhiteElo "2332"]
[BlackElo "2003"]

1. d4 {[%clk 00:03:03]} Nf6 {[%clk 00:03:03]} {[%emt 00:00:02]} 2. Nc3 {[%clk
00:03:03]} d5 {[%clk 00:03:04]} {[%emt 00:00:02]} 3. Bf4 {[%clk 00:03:04]}
{[%emt 00:00:01]} c5 {[%clk 00:03:04]} {[%emt 00:00:01]} 4. e4 {[%clk
00:03:05]} {[%emt 00:00:01]} cxd4 {[%clk 00:03:03]} {[%emt 00:00:03]} 5. Qxd4
{[%clk 00:03:07]} Nc6 {[%clk 00:03:04]} {[%emt 00:00:01]} 6. Bb5 {[%clk
00:03:08]} {[%emt 00:00:01]} Bd7 {[%clk 00:03:05]} 7. Bxc6 {[%clk 00:03:08]}
{[%emt 00:00:01]} Bxc6 {[%clk 00:03:06]} {[%emt 00:00:01]} 8. e5 {[%clk
00:03:10]} Nd7 {[%clk 00:03:06]} {[%emt 00:00:01]} 9. e6 {[%clk 00:03:11]} fxe6
{[%clk 00:03:07]} {[%emt 00:00:01]} 10. Nf3 {[%clk 00:03:12]} Qb6 {[%clk
00:03:06]} {[%emt 00:00:02]} 11. Qd2 {[%clk 00:03:13]} h6 {[%clk 00:02:22]}
{[%emt 00:00:47]} 12. O-O-O {[%clk 00:03:10]} {[%emt 00:00:05]} g5 {[%clk
00:02:23]} {[%emt 00:00:01]} 13. Be3 {[%clk 00:03:11]} {[%emt 00:00:01]} Qc7
{[%clk 00:02:22]} {[%emt 00:00:03]} 14. Rhe1 {[%clk 00:03:08]} {[%emt
00:00:05]} Bg7 {[%clk 00:02:20]} {[%emt 00:00:03]} 15. Bd4 {[%clk 00:03:07]}
{[%emt 00:00:03]} Bxd4 {[%clk 00:02:06]} {[%emt 00:00:16]} 16. Qxd4 {[%clk
00:03:06]} {[%emt 00:00:04]} O-O-O {[%clk 00:02:06]} {[%emt 00:00:02]} 17. Rxe6
{[%clk 00:03:06]} {[%emt 00:00:01]} Nb6 {[%clk 00:02:01]} {[%emt 00:00:06]} 18.
Rde1 {[%clk 00:03:06]} {[%emt 00:00:02]} Rh7 {[%clk 00:01:54]} {[%emt
00:00:09]} 19. Ne5 {[%clk 00:03:00]} {[%emt 00:00:08]} Rd6 {[%clk 00:01:46]}
{[%emt 00:00:10]} 20. Qg4 {[%clk 00:02:36]} {[%emt 00:00:25]} Kb8 {[%clk
00:01:44]} {[%emt 00:00:05]} 21. Qf5 {[%clk 00:02:32]} {[%emt 00:00:06]} Rh8
{[%clk 00:01:43]} {[%emt 00:00:03]} 22. Rxd6 {[%clk 00:02:28]} {[%emt
00:00:06]} Qxd6 {[%clk 00:01:40]} {[%emt 00:00:04]} 23. Nf7 {[%clk 00:03:02]}
{[%emt 00:00:25]} 1-0

[Event "UK Open Blitz Championships 2024 - London Qualifier"]
[Site "London, United Kingdom"]
[Date "2024.09.21"]
[Round "4.1"]
[White "Lucchi, Lorenzo"]
[Black "Ghasi, Ameet K"]
[Result "0-1"]
[TimeControl "3 minutes + 2 seconds incr. from move 1"]
[BlackTitle "IM"]
[WhiteFideId "821160"]
[BlackFideId "409200"]
[WhiteElo "2153"]
[BlackElo "2524"]

1. e4 {[%clk 00:03:04]} g6 {[%clk 00:03:00]} {[%emt 00:00:04]} 2. h4 {[%clk
00:03:04]} {[%emt 00:00:02]} d5 {[%clk 00:02:56]} {[%emt 00:00:06]} 3. exd5
{[%clk 00:03:04]} {[%emt 00:00:02]} Qxd5 {[%clk 00:02:42]} {[%emt 00:00:16]} 4.
Nc3 {[%clk 00:03:04]} {[%emt 00:00:02]} Qd6 {[%clk 00:02:34]} {[%emt 00:00:10]}
5. d4 {[%clk 00:03:04]} {[%emt 00:00:02]} Bg7 {[%clk 00:02:34]} {[%emt
00:00:03]} 6. h5 {[%clk 00:03:01]} {[%emt 00:00:05]} a6 {[%clk 00:02:16]}
{[%emt 00:00:20]} 7. Nf3 {[%clk 00:02:59]} {[%emt 00:00:04]} Bg4 {[%clk
00:01:55]} {[%emt 00:00:23]} 8. h6 {[%clk 00:02:54]} {[%emt 00:00:07]} Bf6
{[%clk 00:01:56]} 9. Ne4 {[%clk 00:02:46]} {[%emt 00:00:10]} Qd5 {[%clk
00:01:52]} {[%emt 00:00:06]} 10. Nxf6+ {[%clk 00:02:34]} {[%emt 00:00:14]} Nxf6
{[%clk 00:01:52]} {[%emt 00:00:02]} 11. Be2 {[%clk 00:02:26]} {[%emt 00:00:10]}
Nc6 {[%clk 00:01:29]} {[%emt 00:00:26]} 12. c4 {[%clk 00:02:27]} {[%emt
00:00:01]} Qe4 {[%clk 00:01:30]} 13. d5 {[%clk 00:02:24]} {[%emt 00:00:06]}
O-O-O {[%clk 00:00:59]} {[%emt 00:00:33]} 14. Bd2 {[%clk 00:02:04]} {[%emt
00:00:22]} Ne5 {[%clk 00:00:36]} {[%emt 00:00:25]} 15. Nxe5 {[%clk 00:02:04]}
{[%emt 00:00:02]} Qxe5 {[%clk 00:00:37]} {[%emt 00:00:01]} 16. Bc3 {[%clk
00:02:04]} Qxe2+ {[%clk 00:00:36]} {[%emt 00:00:04]} 17. Qxe2 {[%clk 00:02:05]}
{[%emt 00:00:02]} Bxe2 {[%clk 00:00:36]} 18. Kxe2 {[%clk 00:02:05]} {[%emt
00:00:02]} Rhe8 {[%clk 00:00:38]} 19. f3 {[%clk 00:01:56]} {[%emt 00:00:10]}
Nh5 {[%clk 00:00:30]} {[%emt 00:00:09]} 20. Kf2 {[%clk 00:01:45]} {[%emt
00:00:13]} e6 {[%clk 00:00:31]} {[%emt 00:00:02]} 21. dxe6 {[%clk 00:01:40]}
{[%emt 00:00:07]} Rxe6 {[%clk 00:00:32]} {[%emt 00:00:01]} 22. Rhe1 {[%clk
00:01:30]} {[%emt 00:00:11]} Nf4 {[%clk 00:00:28]} {[%emt 00:00:07]} 23. Rxe6
{[%clk 00:01:30]} {[%emt 00:00:02]} Nxe6 {[%clk 00:00:28]} {[%emt 00:00:01]} 24.
Re1 {[%clk 00:01:28]} {[%emt 00:00:04]} Rd3 {[%clk 00:00:27]} {[%emt 00:00:03]}
25. Re3 {[%clk 00:01:13]} {[%emt 00:00:17]} Rd1 {[%clk 00:00:26]} {[%emt
00:00:03]} 26. Re1 {[%clk 00:01:14]} Rd3 {[%clk 00:00:28]} 27. Re3 {[%clk
00:01:16]} Rd6 {[%clk 00:00:28]} 28. g3 {[%clk 00:01:16]} {[%emt 00:00:01]} Kd7
{[%clk 00:00:28]} {[%emt 00:00:03]} 29. b3 {[%clk 00:01:17]} {[%emt 00:00:01]}
b6 {[%clk 00:00:29]} {[%emt 00:00:02]} 30. Ke2 {[%clk 00:01:16]} {[%emt
00:00:02]} c5 {[%emt 00:00:14]} 31. Be5 {[%clk 00:01:13]} Rc6 {[%clk 00:00:23]}
32. f4 {[%clk 00:01:14]} {[%emt 00:00:01]} Ke7 {[%clk 00:00:21]} {[%emt
00:00:04]} 33. g4 {[%clk 00:01:15]} {[%emt 00:00:01]} f6 {[%clk 00:00:23]}
{[%emt 00:00:01]} 34. Bc3 {[%clk 00:01:07]} {[%emt 00:00:10]} Kf7 {[%clk
00:00:24]} 35. f5 {[%clk 00:00:57]} {[%emt 00:00:12]} Ng5 {[%clk 00:00:22]}
{[%emt 00:00:04]} 36. Rd3 {[%clk 00:00:53]} {[%emt 00:00:05]} Ke7 {[%emt
00:00:08]} 37. Re3+ {[%clk 00:00:53]} Kf7 {[%emt 00:00:01]} 38. Rd3 {[%clk
00:00:53]} {[%emt 00:00:01]} Ke7 {[%clk 00:00:22]} 39. fxg6 {[%clk 00:00:53]}
{[%emt 00:00:02]} hxg6 {[%clk 00:00:23]} 40. Bd2 {[%clk 00:00:50]} {[%emt
00:00:05]} Re6+ {[%clk 00:00:22]} {[%emt 00:00:03]} 41. Re3 {[%clk 00:00:49]}
{[%emt 00:00:03]} Nh7 {[%clk 00:00:09]} {[%emt 00:00:15]} 42. a4 {[%clk
00:00:44]} {[%emt 00:00:07]} a5 {[%clk 00:00:11]} 43. Rxe6+ {[%clk 00:00:39]}
{[%emt 00:00:07]} Kxe6 {[%clk 00:00:13]} 44. Bf4 {[%clk 00:00:39]} {[%emt
00:00:01]} Kd7 {[%clk 00:00:14]} 45. Kd3 {[%clk 00:00:40]} Kc6 {[%clk
00:00:15]} {[%emt 00:00:02]} 46. Ke4 {[%clk 00:00:40]} {[%emt 00:00:02]} Nf8
{[%clk 00:00:14]} {[%emt 00:00:03]} 47. Bg3 {[%clk 00:00:40]} {[%emt 00:00:02]}
Ne6 {[%clk 00:00:15]} {[%emt 00:00:01]} 48. Bf4 {[%emt 00:00:05]} Nf8 {[%clk
00:00:17]} 49. Be3 {[%clk 00:00:39]} Kd6 {[%clk 00:00:18]} 50. Bd2 {[%clk
00:00:40]} Ke6 {[%clk 00:00:19]} 51. Bf4 {[%clk 00:00:41]} Kd7 {[%clk
00:00:20]} {[%emt 00:00:02]} 52. Kd5 {[%clk 00:00:41]} Nh7 {[%clk 00:00:15]}
{[%emt 00:00:06]} 53. Be3 {[%clk 00:00:42]} Nf8 {[%clk 00:00:16]} {[%emt
00:00:02]} 54. g5 {[%clk 00:00:42]} {[%emt 00:00:01]} f5 {[%clk 00:00:15]}
{[%emt 00:00:03]} 55. Ke5 {[%clk 00:00:43]} {[%emt 00:00:01]} Ke7 {[%clk
00:00:17]} 56. Bf4 {[%clk 00:00:43]} {[%emt 00:00:03]} Nh7 {[%clk 00:00:15]}
{[%emt 00:00:04]} 57. Kd5 {[%clk 00:00:44]} Kd7 {[%clk 00:00:17]} 58. Be5
{[%clk 00:00:43]} {[%emt 00:00:02]} Nxg5 {[%clk 00:00:18]} {[%emt 00:00:01]} 59.
Bf6 {[%clk 00:00:43]} {[%emt 00:00:02]} Nh7 {[%clk 00:00:19]} 60. Bh4 {[%clk
00:00:44]} {[%emt 00:00:01]} g5 {[%clk 00:00:17]} {[%emt 00:00:04]} 61. Bf2
{[%clk 00:00:45]} f4 {[%clk 00:00:18]} 62. Ke5 {[%clk 00:00:46]} Ke7 {[%clk
00:00:20]} 63. Kf5 {[%clk 00:00:47]} Kf7 {[%clk 00:00:21]} 64. Be1 {[%clk
00:00:49]} f3 {[%clk 00:00:18]} {[%emt 00:00:05]} 65. Bg3 {[%clk 00:00:49]}
{[%emt 00:00:01]} Nf8 {[%emt 00:00:06]} 66. Kxg5 {[%clk 00:00:47]} {[%emt
00:00:02]} Ne6+ {[%clk 00:00:16]} {[%emt 00:00:03]} 67. Kh5 {[%clk 00:00:40]}
{[%emt 00:00:08]} Nd4 {[%clk 00:00:15]} {[%emt 00:00:04]} 68. Kg4 {[%clk
00:00:23]} {[%emt 00:00:19]} Kg6 {[%clk 00:00:16]} 69. Kf4 {[%clk 00:00:17]}
{[%emt 00:00:08]} Nxb3 {[%clk 00:00:16]} {[%emt 00:00:02]} 70. Ke5 {[%clk
00:00:19]} Nd2 {[%clk 00:00:17]} {[%emt 00:00:01]} 71. Kd5 {[%clk 00:00:20]}
{[%emt 00:00:01]} Kxh6 {[%clk 00:00:15]} {[%emt 00:00:04]} 72. Be1 {[%clk
00:00:19]} {[%emt 00:00:03]} Kg6 {[%clk 00:00:15]} {[%emt 00:00:02]} 73. Bf2
{[%clk 00:00:17]} {[%emt 00:00:03]} Kf5 {[%clk 00:00:16]} {[%emt 00:00:01]} 74.
Kc6 {[%clk 00:00:18]} {[%emt 00:00:01]} Nxc4 {[%clk 00:00:17]} 75. Kb5 {[%clk
00:00:20]} {[%emt 00:00:01]} Nd6+ {[%clk 00:00:17]} {[%emt 00:00:02]} 76. Kxb6
{[%clk 00:00:20]} {[%emt 00:00:02]} c4 {[%clk 00:00:18]} 77. Kxa5 {[%clk
00:00:21]} {[%emt 00:00:01]} c3 {[%clk 00:00:20]} 0-1

[Event "UK Open Blitz Championships 2024 - London Qualifier"]
[Site "London, United Kingdom"]
[Date "2024.09.21"]
[Round "4.2"]
[White "Gasanov, Eldar"]
[Black "Mirzoeva, Elmira"]
[Result "1/2-1/2"]
[TimeControl "3 minutes + 2 seconds incr. from move 1"]
[WhiteTitle "GM"]
[BlackTitle "WGM"]
[WhiteFideId "14104466"]
[BlackFideId "4127951"]
[WhiteElo "2467"]
[BlackElo "2094"]

1. e4 {[%clk 00:03:01]} c6 {[%clk 00:03:02]} {[%emt 00:00:02]} 2. d4 {[%clk
00:03:01]} {[%emt 00:00:02]} d5 {[%clk 00:03:03]} {[%emt 00:00:02]} 3. Nc3
{[%clk 00:03:01]} {[%emt 00:00:02]} dxe4 {[%clk 00:03:00]} {[%emt 00:00:05]} 4.
Nxe4 {[%clk 00:03:00]} {[%emt 00:00:02]} Bf5 {[%clk 00:03:00]} {[%emt
00:00:03]} 5. Ng3 {[%clk 00:02:59]} {[%emt 00:00:03]} Bg6 {[%clk 00:03:00]}
{[%emt 00:00:02]} 6. h4 {[%clk 00:02:57]} {[%emt 00:00:04]} h6 {[%clk
00:03:00]} {[%emt 00:00:02]} 7. Nf3 {[%clk 00:02:55]} {[%emt 00:00:04]} Nd7
{[%clk 00:02:59]} {[%emt 00:00:04]} 8. Bd3 {[%clk 00:02:53]} {[%emt 00:00:03]}
Bxd3 {[%clk 00:02:58]} {[%emt 00:00:03]} 9. Qxd3 {[%clk 00:02:52]} {[%emt
00:00:03]} Ngf6 {[%clk 00:02:58]} {[%emt 00:00:03]} 10. Bd2 {[%clk 00:02:37]}
{[%emt 00:00:16]} e6 {[%clk 00:02:56]} {[%emt 00:00:05]} 11. O-O-O {[%clk
00:02:35]} {[%emt 00:00:03]} 1/2-1/2